Cogmind - Beta 13 @@@ ROGUE MODE // 2024.05.08 @ 19:05:09 Player: NikedNOGsing_in_can't Result: Destroyed by X-77 Beamer with Gatling Laser Performance ------------- Evolutions (5) 2500 Regions Visited (16) 3200 Robots Destroyed (184) 920 Value Destroyed (5804) 5804 Prototype IDs (26) 520 Alien Tech Used (0) 0 Bonus (2412) 2412 TOTAL SCORE: 15356 Bonus ------- High Alert Combat Kills 224 Follower Combat Kills 834 Awakened Behemoth Slayer 1000 Entered DSFs 500 Met Data Miner 300 Friendly Fire -446 Cogmind --------- Core Integrity 0/1000 Matter 295/300 Energy 50/100 System Corruption 1% Temperature Cool (18) Movement Core (1400) Ox27 Location -5/DSF Parts ------- > --- POWER (2) -------- (None) > --- PROPULSION (4) --- (None) > --- UTILITY (7) ------ Huge Storage Unit > --- WEAPON (4) ------- CR-A16's Behemoth Slayer (fused) > --- INVENTORY (25) --- Improved Cooling System Improved Cooling System Coolant Injector Huge Storage Unit Matter Compressor (250) Structural Scanner Improved Trap Scanner Advanced Signal Interpreter Advanced Terrain Scanner Matter Filter Dynamic Insulation System Improved Dynamic Insulation System Long-range Tractor Beam Drone Bay (2/2) Heavy Battle Rifle Makeshift Hammer GAL Module Peak State ------------ > --- POWER ------------ Improved Deuterium Engine > --- PROPULSION ------- Light Treads Carbon-fiber Leg Compact Wheel Cooled VTOL Module > --- UTILITY ---------- Armored Scrap Engine Huge Storage Unit Launcher Guidance Computer Advanced Thermal Shield Dynamic Insulation System > --- WEAPON ----------- Heavy Ion Cannon Greatsword CR-A16's Behemoth Slayer > --- INVENTORY -------- Improved Deuterium Engine Improved Cooling System Improved Cooling System Coolant Injector Huge Storage Unit Matter Compressor Structural Scanner Advanced Signal Interpreter Advanced Terrain Scanner Seismic Detector Matter Filter Focal Shield Heavy Ion Cannon Proton Missile Launcher Heavy Missile Launcher Tearclaws GAL Module [Rating: 76] Favorites ----------- Power Improved Deuterium Engine Engine Improved Deuterium Engine Propulsion Medium Treads Treads Medium Treads Leg Carbon-fiber Leg Wheel Compact Wheel Flight Unit Cooled VTOL Module Utility Armored Scrap Engine Device Armored Scrap Engine Storage High-capacity Storage Unit Processor Launcher Guidance Computer Protection Improved Medium Armor Plating Weapon Minigun Energy Gun Particle Gun Energy Cannon Heavy Ion Cannon Ballistic Gun Minigun Ballistic Cannon Constructs Launcher Heavy Missile Launcher Special Weapon Mining Laser Impact Weapon Heavy Hammer Slashing Weapon Greatsword Piercing Weapon CR-A16's Behemoth Slayer Build | -11 -10 -10 -9 -9 -9 -7 -7 -7 -7 -6 -6 -6 -6 -5 -5 -5 ------- Run | Yrd Mat Min Mat Sto Rec Fac Low Low Zio Pro Fac Low Dat Pro Fac DSF Slots Evolved 10 | . . . 2 . . 4 . . . . 2 . . . 2 . Power 1 | . . . . . . . . . . . . . . . 1 . Propulsion 2 | . . . 1 . . 1 . . . . . . . . . . Utility 5 | . . . 1 . . 2 . . . . 1 . . . 1 . Weapon 2 | . . . . . . 1 . . . . 1 . . . . . Parts Attached 289 | 8 10 13 20 54 9 53 21 11 6 33 24 4 . 14 3 6 Power 17 | 1 1 2 1 6 . 2 . 1 . 2 . . . 1 . . Engine 17 | 1 1 2 1 6 . 2 . 1 . 2 . . . 1 . . Core . | . . . . . . . . . . . . . . . . . Reactor . | . . . . . . . . . . . . . . . . . Propulsion 48 | 2 1 2 4 15 3 7 1 1 . 2 4 . . 6 . . Treads 25 | 2 . . 1 9 3 7 1 1 . . 1 . . . . . Leg 4 | . . . . 3 . . . . . 1 . . . . . . Wheel 15 | . 1 2 3 2 . . . . . . 3 . . 4 . . Hover . | . . . . . . . . . . . . . . . . . Flight 4 | . . . . 1 . . . . . 1 . . . 2 . . Utility 95 | 2 3 3 8 9 1 21 11 6 3 9 7 1 . 5 2 4 Device 47 | 1 . 2 5 2 1 8 6 4 1 5 5 1 . 2 2 2 Storage 9 | 1 1 . . 2 . 2 . . . 2 1 . . . . . Processor 3 | . . . . . . 2 . . . 1 . . . . . . Hackware . | . . . . . . . . . . . . . . . . . Protection 36 | . 2 1 3 5 . 9 5 2 2 1 1 . . 3 . 2 Artifact . | . . . . . . . . . . . . . . . . . Weapon 129 | 3 5 6 7 24 5 23 9 3 3 20 13 3 . 2 1 2 Energy Gun 8 | . . . 1 3 . 3 . . . . . . . . 1 . Energy Cannon 28 | . . . 2 5 . 2 2 1 . 3 9 1 . 1 . 2 Ballistic Gun 45 | 3 3 3 1 11 3 11 5 1 1 3 . . . . . . Ballistic Cannon . | . . . . . . . . . . . . . . . . . Launcher 26 | . 1 1 2 4 . 3 2 1 . 10 . 2 . . . . Special Weapon 6 | . 1 2 1 1 1 . . . . . . . . . . . Impact Weapon 6 | . . . . . 1 4 . . 1 . . . . . . . Slashing Weapon 6 | . . . . . . . . . . 1 4 . . 1 . . Piercing Weapon 4 | . . . . . . . . . 1 3 . . . . . . Special Melee Weapon . | . . . . . . . . . . . . . . . . . Unidentified Prototypes 9 | . . . . 5 . 2 . . 1 . 1 . . . . . Corrupted Parts 1 | . . . . . . . . . . 1 . . . . . . System Corruption 5 | . . . . . . . . . . 5 . . . . . . Parts Lost 61 | . 3 1 2 14 . 2 1 . . 12 1 4 . 9 . 12 Power 8 | . 1 1 . 1 . . . . . 3 . 1 . 1 . . Propulsion 23 | . 2 . 2 5 . 2 . . . 4 1 1 . 5 . 1 Utility 15 | . . . . 4 . . 1 . . 2 . . . . . 8 Weapon 15 | . . . . 4 . . . . . 3 . 2 . 3 . 3 Highest Loss Streak 12 | . 2 1 1 5 . 1 1 . . 5 1 4 . 4 . 12 To Critical Strikes . | . . . . . . . . . . . . . . . . . Average Slot Usage (%) 84 | . 98 90 97 93 88 90 90 91 91 63 77 86 80 79 48 49 Engine 7 | . 14 13 11 10 11 7 7 7 7 5 6 6 6 5 . . Treads 17 | . 23 . 8 18 33 29 29 29 30 2 4 6 . . . . Leg 1 | . . . . 5 . . . . . 1 5 . . . . . Wheel 3 | . 2 19 22 4 . . . . . . 5 13 13 23 5 3 Flight 1 | . . . . . . . . . . 5 3 . . . . . Device 13 | . 11 5 11 8 11 10 19 16 7 15 16 13 13 13 14 17 Storage 8 | . 14 14 11 11 11 7 7 7 7 12 6 6 6 6 5 5 Processor 1 | . . . . . . 4 . . . 1 6 6 6 6 5 1 Protection 5 | . 2 8 9 11 . 6 3 5 14 . 1 6 6 4 5 3 Energy Cannon 3 | . . . 1 3 . . 4 5 7 . 6 20 20 3 . 5 Ballistic Gun 11 | . 27 21 12 14 21 19 17 16 5 2 . . . . . . Piercing Weapon 2 | . . . . . . . . . 2 6 6 6 6 6 5 5 Naked Turns . | . . . . . . . . . . . . . . . . . Heaviest Build 120 | 14 30 30 38 59 61 72 80 80 80 80 120 120 118 118 98 119 Greatest Support 112 | 40 40 20 26 60 63 112 112 112 99 99 26 26 26 64 16 16 Greatest Overweight (x) 17 | . 2 2 2 11 1 1 . . . 17 7 4 4 6 6 7 Average Overweight (x) 1 | . . 1 1 . . . . . . 5 4 4 4 1 5 6 Largest Inventory Capacity 25 | 8 15 15 15 20 20 20 20 20 20 20 25 25 25 25 25 25 Average Capacity 19 | 7 8 15 15 15 20 20 20 20 20 19 22 25 25 25 25 25 Most Carried 25 | 6 8 11 15 19 20 20 20 20 20 20 25 25 23 25 24 23 Average Carried 17 | 2 7 8 12 13 19 19 18 19 19 14 17 24 23 20 23 19 Final Capacity 25 | 8 15 15 15 20 20 20 20 20 20 20 25 25 25 25 25 25 Final Carried 25 | 6 8 11 14 19 20 19 20 20 20 13 25 23 23 24 23 17 Scrap Engine Consumption 70 | . . . . . 11 31 7 5 6 . 8 . . 2 . . Constructs Created 5 | . . . . . . 1 . 1 1 1 . 1 . . . . Constructs Modified 12 | . . . . . . 1 . 2 4 3 . 1 . 1 . . Class Distribution -------------------- 46% | Mutant 16% | Tank 9% | Scavenger-Mutant 9% | Skirmisher 7% | Commander-Mutant 3% | Scavenger-Tank 3% | Commander-Tank Dominant Class ---------------- Mutant | -10/Materials Mutant | -10/Mines Scavenger-Mutant | -9/Materials Scavenger-Mutant | -9/Storage Commander-Mutant | -9/Recycling Tank | -7/Factory Skirmisher | -7/Lower Caves Tank | -7/Lower Caves Mutant | -7/Zion Mutant | -6/Proximity Caves Mutant | -6/Factory Gunner | -6/Lower Caves Tank | -6/Data Miner Mutant | -5/Proximity Caves Mutant | -5/Factory Tank | -5/DSF Resources | -11 -10 -10 -9 -9 -9 -7 -7 -7 -7 -6 -6 -6 -6 -5 -5 -5 ----------- Run | Yrd Mat Min Mat Sto Rec Fac Low Low Zio Pro Fac Low Dat Pro Fac DSF Matter Collected 6023 | 300 305 178 184 1236 492 1145 470 210 97 672 526 34 . 149 25 . Remotely . | . . . . . . . . . . . . . . . . . Salvage Created 7599 | 97 460 111 168 1560 1157 1314 457 162 . 634 812 278 . 389 . . Parts 381 | 8 37 18 10 80 36 94 17 11 . 12 40 5 . 13 . . Haulers Intercepted 6 | . . . . 5 . . . . . . 1 . . . . . Recyclers Shooed 25 | 1 2 . . 7 14 1 . . . . . . . . . . Parts Field Recycled . | . . . . . . . . . . . . . . . . . Retrieved Matter . | . . . . . . . . . . . . . . . . . Parts Self-Destructed 46 | . . . . . . . 17 11 . 8 . 1 . 9 . . Prevented 3 | . . . . . . . . 1 . 2 . . . . . . Kills | -11 -10 -10 -9 -9 -9 -7 -7 -7 -7 -6 -6 -6 -6 -5 -5 -5 ------- Run | Yrd Mat Min Mat Sto Rec Fac Low Low Zio Pro Fac Low Dat Pro Fac DSF Combat Hostiles Destroyed 129 | . 13 4 3 26 8 23 10 7 . 18 8 4 . 5 . . Melee 7 | . . . . . . . . . . 3 3 . . 1 . . Guns 59 | . 11 2 1 12 8 17 5 2 . 1 . . . . . . Cannons 18 | . . . 1 4 . . . 3 . 2 3 1 . 4 . . AOE 44 | . 2 2 1 9 . 6 5 2 . 12 2 3 . . . . Classes Destroyed 21 | 2 4 2 1 4 2 1 1 . . 2 1 . . 1 . . Worker 9 | . 1 3 1 1 . 1 . . . . 2 . . . . . Builder 5 | . . 1 . . 1 1 . . . . 2 . . . . . Tunneler 3 | 1 . 1 . . . . . . . . 1 . . . . . Hauler 6 | . . . . 5 . . . . . . 1 . . . . . Recycler 19 | 1 . . 1 3 10 3 . . . . 1 . . . . . Minesweeper 1 | . . . . . . . . . . 1 . . . . . . Mechanic 1 | . . . . 1 . . . . . . . . . . . . Operator 1 | . . . . . . 1 . . . . . . . . . . Watcher 7 | . 2 . . 2 . 2 . . . . 1 . . . . . Swarmer 33 | . 3 3 2 3 1 7 4 2 . 1 . 2 . 5 . . Grunt 46 | . 10 . . 16 . 3 . . . 13 2 2 . . . . Brawler 1 | . . . . 1 . . . . . . . . . . . . Duelist 1 | . . . . . . . . . . . 1 . . . . . Protector 4 | . . . . 2 . 2 . . . . . . . . . . Sentry 21 | . . . 1 5 5 7 1 1 . 1 . . . . . . Demolisher 1 | . . 1 . . . . . . . . . . . . . . Hunter 6 | . . . . . 1 2 . . . 1 2 . . . . . Programmer 12 | . . . . . 1 4 . 3 . 1 3 . . . . . Behemoth 1 | . . . . . . . . . . 1 . . . . . . Packrat 2 | . . . . . . . . . . . . 2 . . . . Samaritan 1 | . . . . . . . . . . . . . . 1 . . Thief 2 | . . . . . . . 1 1 . . . . . . . . Thug 4 | . . . . . . . 4 . . . . . . . . . Best Kill Streak 6 | 2 3 4 2 6 5 5 3 5 . 5 3 4 . 4 . . Combat Bots Only 6 | . 3 3 2 6 2 4 3 5 . 5 3 4 . 4 . . Max Kills in Single Turn 3 | 1 1 3 1 3 1 2 3 1 . 3 2 3 . 1 . . Gunslinging . | . . . . . . . . . . . . . . . . . Exploded 3 | . 1 2 1 3 . 2 3 1 . 3 2 3 . . . . Melee 1 | . . . . . . . . . . 1 1 . . 1 . . Uniques/NPCs Destroyed . | . . . . . . . . . . . . . . . . . Combat | -11 -10 -10 -9 -9 -9 -7 -7 -7 -7 -6 -6 -6 -6 -5 -5 -5 -------- Run | Yrd Mat Min Mat Sto Rec Fac Low Low Zio Pro Fac Low Dat Pro Fac DSF Hostile Shots Fired 1209 | . 82 9 54 109 46 265 52 30 . 143 62 48 . 96 3 210 Missed 352 | . 24 1 19 24 12 101 14 7 . 43 20 16 . 32 1 38 Damage Taken 11878 | . 664 163 438 1189 487 1311 561 521 . 1926 640 534 . 1131 23 2290 Core 2295 | . 97 20 73 201 68 102 87 33 . 247 81 56 . 217 14 999 Absorbed by Shields 330 | . . . . 44 14 272 . . . . . . . . . . Redirected to Shielding 102 | . . . . . . . . . . . 14 21 . 12 . 55 Ignored by Resistances 388 | . . . . . . 27 53 . . 146 91 36 . . 9 26 Regen/Repaired (Parts) 808 | . . . . . 85 60 73 16 31 21 393 8 . 121 . . Core Remaining (%) 51 | 100 . 53 . . 14 . . . . 33 . . . 58 . . Volleys Fired 540 | 5 68 48 21 120 64 65 42 12 . 29 26 20 . 19 . 1 Largest 3 | 2 2 2 2 2 2 3 3 3 . 3 3 3 . 3 . 3 Hottest 235 | 40 100 100 100 136 46 120 137 137 . 143 165 165 . 235 . 198 Shots Fired 1018 | 10 131 63 32 218 116 176 79 34 . 63 43 24 . 26 . 3 Gun 727 | 10 126 30 20 185 104 164 45 25 . 17 . . . . . 1 Cannon 188 | . . . 5 26 . 4 30 6 . 23 43 23 . 26 . 2 Launcher 51 | . 4 2 1 5 . 8 4 3 . 23 . 1 . . . . Special 52 | . 1 31 6 2 12 . . . . . . . . . . . Kinetic 690 | 10 126 30 15 143 104 163 45 25 . 29 . . . . . . Thermal 264 | . 1 31 16 70 . 5 30 6 . 11 43 23 . 26 . 2 Explosive 43 | . 4 2 1 5 . 5 1 3 . 21 . 1 . . . . Electromagnetic 9 | . . . . . . 3 3 . . 2 . . . . . 1 Robot Hit Streak 17 | 5 17 11 7 12 16 16 5 7 . 10 10 4 . 4 . . Robot Miss Streak 6 | 1 5 3 4 4 1 3 6 2 . 3 4 1 . 4 . . Penetration Max . | . . . . . . . . . . . . . . . . . Secondary Targets 2 | . . . . . 1 . 1 . . . . . . . . . Max Gunslinging Chain 1 | . . . . . 1 . 1 . . . . . . . . . Shots Hit Robots 650 | 7 80 17 15 151 95 115 32 21 . 52 37 6 . 20 . 2 Core Hits 339 | 3 29 9 7 68 31 62 18 10 . 51 34 11 . 6 . . Critical Kills 5 | . . 1 . 2 . 1 1 . . . . . . . . . Critical Parts Destroyed 1 | . . . . . 1 . . . . . . . . . . . Critical Strikes 13 | . . 1 . 4 1 1 1 . . 3 1 . . 1 . . Burn 2 | . . . . 2 . . . . . . . . . . . . Meltdown 1 | . . . . 1 . . . . . . . . . . . . Destroy 5 | . . 1 . 1 1 1 1 . . . . . . . . . Sever 1 | . . . . . . . . . . . . . . 1 . . Impale 4 | . . . . . . . . . . 3 1 . . . . . Melee Attacks 70 | . . . . . 3 13 . . 1 16 22 2 . 10 1 2 Impact 17 | . . . . . 3 13 . . 1 . . . . . . . Slashing 14 | . . . . . . . . . . . 7 . . 7 . . Piercing 39 | . . . . . . . . . . 16 15 2 . 3 1 2 Sneak Attacks 11 | . . . . . 1 . . . . 1 5 2 . 2 . . Combat Hostiles 1 | . . . . . 1 . . . . . . . . . . . Follow-up Attacks 1 | . . . . . . . . . . . 1 . . . . . Damage Inflicted 17280 | 84 1142 449 228 2394 1379 2678 1100 825 . 3150 1726 967 . 1097 . 61 Guns 7077 | 84 930 245 172 1546 1287 1825 427 320 . 241 . . . . . . Cannons 2413 | . . . 20 370 . 53 189 160 . 324 740 95 . 462 . . Explosions 5765 | . 212 204 12 478 . 798 484 345 . 2167 341 724 . . . . Melee 1989 | . . . . . 92 . . . . 418 645 148 . 635 . 51 Ramming 12 | . . . . . . 2 . . . . . . . . . 10 Kinetic 6701 | 84 930 245 108 1117 1287 1825 427 320 . 358 . . . . . . Thermal 3196 | . . . 108 799 . 53 189 160 . 207 793 425 . 462 . . Explosive 4473 | . 212 204 12 478 . 597 236 345 . 1995 . 394 . . . . Electromagnetic 909 | . . . . . . 201 248 . . 172 288 . . . . . Impact 92 | . . . . . 92 . . . . . . . . . . . Slashing 821 | . . . . . . . . . . . 316 . . 505 . . Piercing 1076 | . . . . . . . . . . 418 329 148 . 130 . 51 Highest Corruption 6 | . . . . . . 2 2 2 2 6 . . . . . 1 Average Corruption 2 | . . . . . . 1 2 2 2 2 . . . . . 1 Corruption Purged . | . . . . . . . . . . . . . . . . . Corruption Blocked . | . . . . . . . . . . . . . . . . . Effects 119 | . . . . . . 24 32 12 1 48 . . . . . 2 Message Errors 34 | . . . . . . 4 8 4 . 18 . . . . . . Matter Fused 20 | . . . . . . 7 6 1 1 4 . . . . . 1 Heat Flow Errors 16 | . . . . . . 3 7 2 . 4 . . . . . . Energy Discharges 12 | . . . . . . 4 3 2 . 3 . . . . . . Parts Rejected 1 | . . . . . . . . . . . . . . . . 1 Parts Fused 2 | . . . . . . . 1 . . 1 . . . . . . Data Loss (minor) 17 | . . . . . . 2 1 1 . 13 . . . . . . Data Loss (major) 10 | . . . . . . 3 3 . . 4 . . . . . . Misfires 4 | . . . . . . . 2 2 . . . . . . . . Alerts 1 | . . . . . . . 1 . . . . . . . . . Weapon Failures 2 | . . . . . . 1 . . . 1 . . . . . . Overload Shots 2 | . . . . . . . . . . . . . . 2 . . Overflow Damage 776 | . . . . 52 . 10 38 36 . 137 74 157 . 272 . . Projectiles 104 | . . . . . . . 12 9 . 18 2 . . 63 . . Explosions 149 | . . . . 52 . 10 26 27 . 17 . 17 . . . . Melee 523 | . . . . . . . . . . 102 72 140 . 209 . . Knockbacks 2 | . . . . . . . . . . 2 . . . . . . Impact . | . . . . . . . . . . . . . . . . . Kinetic 2 | . . . . . . . . . . 2 . . . . . . Secondary . | . . . . . . . . . . . . . . . . . Self-Inflicted Damage 457 | . . . 31 109 . 52 28 77 . 155 . . . . . 5 Shots 16 | . . . 1 3 . 2 1 2 . 7 . . . . . . Rammed 4 | . . . . . . 1 . . . . . . . . . 3 Targets Rammed 4 | . . . . . . 1 . . . . . . . . . 3 Kicked . | . . . . . . . . . . . . . . . . . Crushed . | . . . . . . . . . . . . . . . . . Highest Temperature 680 | . 20 160 96 324 14 267 267 293 . 680 300 75 . 285 . 24 Average Temperature 82 | . 6 66 30 86 3 46 85 94 . 156 71 44 . 141 . 16 Received Heat Transfer 3991 | . 300 . 84 460 167 272 99 45 . 1198 9 81 . 244 . 1032 Effects 14 | . . . . 2 . . . 2 . 10 . . . . . . Shutdowns 2 | . . . . . . . . . . 2 . . . . . . Energy Bleed 3 | . . . . . . . . . . 3 . . . . . . Interference 4 | . . . . 2 . . . 2 . . . . . . . . Matter Decay 1 | . . . . . . . . . . 1 . . . . . . Short Circuit 1 | . . . . . . . . . . 1 . . . . . . Damage (minor) 1 | . . . . . . . . . . 1 . . . . . . Damage (major) 2 | . . . . . . . . . . 2 . . . . . . Siege Activations . | . . . . . . . . . . . . . . . . . Robots Corrupted . | . . . . . . . . . . . . . . . . . Combat Hostiles . | . . . . . . . . . . . . . . . . . Parts Fried 4 | . . . . . . 1 1 . . . 2 . . . . . Impact Corruptions . | . . . . . . . . . . . . . . . . . Robots Melted 1 | . . . . 1 . . . . . . . . . . . . Combat Hostiles 1 | . . . . 1 . . . . . . . . . . . . Parts Melted 9 | . . . . 5 . . . . . . 4 . . . . . Heat Transferred 5128 | . . . 235 1850 . 74 259 185 . 259 1077 524 . 665 . . Parts Sabotaged . | . . . . . . . . . . . . . . . . . Parts Stolen 1 | . . . . . . . 1 . . . . . . . . . Parts Stripped . | . . . . . . . . . . . . . . . . . Power Chain Reactions 2 | . . . . . . 1 . . . . 1 . . . . . Alert | -11 -10 -10 -9 -9 -9 -7 -7 -7 -7 -6 -6 -6 -6 -5 -5 -5 ------- Run | Yrd Mat Min Mat Sto Rec Fac Low Low Zio Pro Fac Low Dat Pro Fac DSF Peak Influence 592 | 10 254 184 87 592 356 518 . . . . 192 . . . 26 21 Initial 375 | . 6 40 2 32 230 375 . . . . 62 . . . 9 21 Average 192 | 3 102 61 30 260 216 396 . . . . 49 . . . 10 13 Maximum Alert Level 2 | . 1 . . 2 1 2 . . . . . . . . . . Low Security (%) 57 | 100 93 100 100 49 34 . . . . . 100 . . . 100 100 Level 1 28 | . 6 . . 26 65 58 . . . . . . . . . . Level 2 13 | . . . . 24 . 41 . . . . . . . . . . Level 3 . | . . . . . . . . . . . . . . . . . Level 4 . | . . . . . . . . . . . . . . . . . Level 5 . | . . . . . . . . . . . . . . . . . High Security . | . . . . . . . . . . . . . . . . . Max Security . | . . . . . . . . . . . . . . . . . Squads Dispatched 31 | . 5 . . 6 . 11 . . . . 7 . . 1 . 1 Investigation 11 | . 4 . . 2 . 3 . . . . 2 . . . . . Extermination 8 | . . . . . . 5 . . . . 3 . . . . . Reinforcement 5 | . 1 . . 1 . 1 . . . . 1 . . . . 1 Assault 5 | . . . . 3 . 1 . . . . . . . 1 . . Garrison 2 | . . . . . . 1 . . . . 1 . . . . . Intercept . | . . . . . . . . . . . . . . . . . Searches Triggered . | . . . . . . . . . . . . . . . . . Construction Impeded . | . . . . . . . . . . . . . . . . . Haulers Reinforced . | . . . . . . . . . . . . . . . . . Active Scanning Responses . | . . . . . . . . . . . . . . . . . Cargo Convoy Interrupts . | . . . . . . . . . . . . . . . . . Stealth | -11 -10 -10 -9 -9 -9 -7 -7 -7 -7 -6 -6 -6 -6 -5 -5 -5 --------- Run | Yrd Mat Min Mat Sto Rec Fac Low Low Zio Pro Fac Low Dat Pro Fac DSF Distress Signals 8 | . 2 . . 4 . 2 . . . . . . . . . . Communications Jammed . | . . . . . . . . . . . . . . . . . Distress Signals . | . . . . . . . . . . . . . . . . . Times Spotted 218 | . 20 5 15 47 10 34 11 7 . 23 13 10 . 20 1 2 Peak Tracking Total 12 | . 4 3 12 9 2 7 4 5 . 5 3 12 . 8 1 2 Tactical Retreats 11 | . . 1 . . . 1 1 . . 6 . . . 2 . . Traps | -11 -10 -10 -9 -9 -9 -7 -7 -7 -7 -6 -6 -6 -6 -5 -5 -5 ------- Run | Yrd Mat Min Mat Sto Rec Fac Low Low Zio Pro Fac Low Dat Pro Fac DSF Traps Triggered 6 | . 2 . . 1 . 2 . . . . 1 . . . . . Indirectly . | . . . . . . . . . . . . . . . . . Trap Hack Attempts . | . . . . . . . . . . . . . . . . . Triggered . | . . . . . . . . . . . . . . . . . Disarmed . | . . . . . . . . . . . . . . . . . Reprogrammed . | . . . . . . . . . . . . . . . . . Reused . | . . . . . . . . . . . . . . . . . Traps Extracted . | . . . . . . . . . . . . . . . . . Installed . | . . . . . . . . . . . . . . . . . Triggered 2 | . . . . . . . . 1 . 1 . . . . . . Machines | -11 -10 -10 -9 -9 -9 -7 -7 -7 -7 -6 -6 -6 -6 -5 -5 -5 ---------- Run | Yrd Mat Min Mat Sto Rec Fac Low Low Zio Pro Fac Low Dat Pro Fac DSF Machines Disabled 25 | . . . 1 3 . 5 . 3 . . 10 3 . . . . Max in Single Turn 4 | . . . 1 1 . 1 . 1 . . 4 3 . . . . Garrison Access 2 | . . . . 1 . 1 . . . . . . . . . . Machines Repaired . | . . . . . . . . . . . . . . . . . Machines Dismantled . | . . . . . . . . . . . . . . . . . Machines Sabotaged . | . . . . . . . . . . . . . . . . . Overloaded Fab Kills . | . . . . . . . . . . . . . . . . . Hacking | -11 -10 -10 -9 -9 -9 -7 -7 -7 -7 -6 -6 -6 -6 -5 -5 -5 --------- Run | Yrd Mat Min Mat Sto Rec Fac Low Low Zio Pro Fac Low Dat Pro Fac DSF Machines Accessed 53 | . 6 . 4 6 8 13 . 1 . . 9 . 4 . 2 . Terminals 35 | . 5 . 4 6 4 7 . . . . 7 . . . 2 . Fabricators 4 | . . . . . . 3 . . . . 1 . . . . . Repair Stations . | . . . . . . . . . . . . . . . . . Recycling Units 5 | . 1 . . . 4 . . . . . . . . . . . Scanalyzers 2 | . . . . . . 2 . . . . . . . . . . Garrison Access 2 | . . . . . . 1 . . . . 1 . . . . . Total Hacks 155 | . 18 . 14 13 23 32 . 1 . . 22 . 29 . 3 . Successful 80 | . 4 . 6 3 12 15 . 1 . . 9 . 29 . 1 . Failed 74 | . 14 . 8 10 11 17 . . . . 12 . . . 2 . Catastrophic 16 | . 5 . 1 2 2 2 . . . . 3 . . . 1 . Database Lockouts 1 | . . . . . . . . . . . 1 . . . . . Manual 55 | . 6 . 5 8 14 7 . . . . 15 . . . . . Terminals 93 | . 16 . 14 13 11 19 . . . . 17 . . . 3 . Fabricators 9 | . . . . . . 6 . . . . 3 . . . . . Repair Stations . | . . . . . . . . . . . . . . . . . Recycling Units 14 | . 2 . . . 12 . . . . . . . . . . . Scanalyzers 6 | . . . . . . 6 . . . . . . . . . . Garrison Access 3 | . . . . . . 1 . . . . 2 . . . . . Terminal Hacks 55 | . 3 . 5 3 2 6 . 1 . . 5 . 29 . 1 . Record 11 | . . . . . . . . . . . . . 11 . . . Part Schematic 12 | . . . . 1 . . . . . . 1 . 10 . . . Robot Schematic 6 | . . . . . . 1 . . . . . . 5 . . . Robot Analysis 3 | . . . . . 1 1 . . . . 1 . . . . . Prototype ID Bank 4 | . 1 . . . . . . . . . . . 3 . . . Open Door 2 | . . . . 1 . . . 1 . . . . . . . . Open DSF 1 | . . . . . . . . . . . . . . . 1 . Branch Access Points 4 | . 1 . 1 . . 1 . . . . 1 . . . . . Alert Level 4 | . . . 1 . 1 1 . . . . 1 . . . . . Unreport Threat 3 | . . . . . . 2 . . . . 1 . . . . . Locate Traps 1 | . . . 1 . . . . . . . . . . . . . Dispatch Records 1 | . . . 1 . . . . . . . . . . . . . Hauler Manifests 1 | . . . 1 . . . . . . . . . . . . . Registered Components 1 | . . . . 1 . . . . . . . . . . . . Zone Layout 1 | . 1 . . . . . . . . . . . . . . . Fabricator Hacks 3 | . . . . . . 3 . . . . . . . . . . Network Status 1 | . . . . . . 1 . . . . . . . . . . Load Schematic 1 | . . . . . . 1 . . . . . . . . . . Build 1 | . . . . . . 1 . . . . . . . . . . Repair Station Hacks . | . . . . . . . . . . . . . . . . . Recycling Unit Hacks 3 | . 1 . . . 2 . . . . . . . . . . . Retrieve Components 3 | . 1 . . . 2 . . . . . . . . . . . Scanalyzer 3 | . . . . . . 3 . . . . . . . . . . Insert Component 2 | . . . . . . 2 . . . . . . . . . . Analyze 1 | . . . . . . 1 . . . . . . . . . . Garrison Access Hacks 1 | . . . . . . 1 . . . . . . . . . . Seal Access 1 | . . . . . . 1 . . . . . . . . . . Unauthorized Hacks 15 | . . . 1 . 8 2 . . . . 4 . . . . . Terminals 10 | . . . 1 . 3 2 . . . . 4 . . . . . Botnet 10 | . . . 1 . 3 2 . . . . 4 . . . . . Fabricators . | . . . . . . . . . . . . . . . . . Repair Stations . | . . . . . . . . . . . . . . . . . Recycling Units 5 | . . . . . 5 . . . . . . . . . . . Mask 1 | . . . . . 1 . . . . . . . . . . . Tunnel 4 | . . . . . 4 . . . . . . . . . . . Scanalyzers . | . . . . . . . . . . . . . . . . . Garrison Access . | . . . . . . . . . . . . . . . . . Data Cores Recovered 1 | . . . . . . 1 . . . . . . . . . . Used . | . . . . . . . . . . . . . . . . . Hacking Detections 43 | . 5 . 4 6 7 12 . . . . 8 . . . 1 . Full Trace Events 13 | . 3 . 1 2 2 3 . . . . 2 . . . . . Feedback Events . | . . . . . . . . . . . . . . . . . Feedback Blocked . | . . . . . . . . . . . . . . . . . Robot Schematics Acquired 9 | . . . . . . 1 . . 3 . . . 5 . . . Robots Built . | . . . . . . . . . . . . . . . . . Authchips . | . . . . . . . . . . . . . . . . . Time . | . . . . . . . . . . . . . . . . . Total Robot Build Rating . | . . . . . . . . . . . . . . . . . Part Schematics Acquired 28 | . . . . 1 . 1 . . 15 . 1 . 10 . . . Parts Built 2 | . . . . . . 2 . . . . . . . . . . Authchips . | . . . . . . . . . . . . . . . . . Time 58 | . . . . . . 58 . . . . . . . . . . Total Part Build Rating 14 | . . . . . . 14 . . . . . . . . . . Parts Repaired . | . . . . . . . . . . . . . . . . . Time . | . . . . . . . . . . . . . . . . . Parts Recycled . | . . . . . . . . . . . . . . . . . Recycled Matter . | . . . . . . . . . . . . . . . . . Retrieved Matter . | . . . . . . . . . . . . . . . . . Retrieved Components 4 | . 3 . . . 1 . . . . . . . . . . . Parts Scanalyzed 1 | . . . . . . 1 . . . . . . . . . . Part Schematics Acquired 1 | . . . . . . 1 . . . . . . . . . . Parts Damaged . | . . . . . . . . . . . . . . . . . Bothacking | -11 -10 -10 -9 -9 -9 -7 -7 -7 -7 -6 -6 -6 -6 -5 -5 -5 ------------ Run | Yrd Mat Min Mat Sto Rec Fac Low Low Zio Pro Fac Low Dat Pro Fac DSF Used RIF Installer . | . . . . . . . . . . . . . . . . . Robots Hacked . | . . . . . . . . . . . . . . . . . Non-combat . | . . . . . . . . . . . . . . . . . Combat . | . . . . . . . . . . . . . . . . . Robot Hacks Applied . | . . . . . . . . . . . . . . . . . Relay Couplers Released 1 | . . . . 1 . . . . . . . . . . . . Machine Destruction 1 | . . . . 1 . . . . . . . . . . . . Fabnet Peak Effective % . | . . . . . . . . . . . . . . . . . Robots Rewired 16 | . . . . . 16 . . . . . . . . . . . Allies Hacked . | . . . . . . . . . . . . . . . . . Hacks Repelled . | . . . . . . . . . . . . . . . . . Allies | -11 -10 -10 -9 -9 -9 -7 -7 -7 -7 -6 -6 -6 -6 -5 -5 -5 -------- Run | Yrd Mat Min Mat Sto Rec Fac Low Low Zio Pro Fac Low Dat Pro Fac DSF Total Allies 32 | . . . . 12 16 . . . . . 3 . . 1 . . Largest Group 12 | . . . . 10 12 12 . . . . 3 . . 1 . . Highest-Rated Group 239 | . . . . 118 239 239 . . . . 93 . . 96 . . Highest-Rated Ally 96 | . . . . 31 27 27 . . . . 31 . . 96 . . Total Orders 14 | . . . . . . 14 . . . . . . . . . . STAY 7 | . . . . . . 7 . . . . . . . . . . FOLLOW 7 | . . . . . . 7 . . . . . . . . . . Ally Attacks 166 | . . . . 79 25 37 . . . . 19 . . 6 . . Total Damage 2806 | . . . . 997 397 792 . . . . 330 . . 290 . . Kills 29 | . . . . 14 6 7 . . . . 2 . . . . . Allies Corrupted 1 | . . . . . . 1 . . . . . . . . . . Allies Melted 1 | . . . . . . . . . . . . . . 1 . . Intel | -11 -10 -10 -9 -9 -9 -7 -7 -7 -7 -6 -6 -6 -6 -5 -5 -5 ------- Run | Yrd Mat Min Mat Sto Rec Fac Low Low Zio Pro Fac Low Dat Pro Fac DSF Robot Analysis Total 3 | . . . . . 1 1 . . . . 1 . . . . . Derelict Logs Recovered 4 | . . . . . . . 2 1 . . . . . 1 . . Drone Launches . | . . . . . . . . . . . . . . . . . Drone Recoveries . | . . . . . . . . . . . . . . . . . Exploration | -11 -10 -10 -9 -9 -9 -7 -7 -7 -7 -6 -6 -6 -6 -5 -5 -5 ------------- Run | Yrd Mat Min Mat Sto Rec Fac Low Low Zio Pro Fac Low Dat Pro Fac DSF Turns Passed 20670 | 130 831 697 852 1519 1445 2453 2701 990 1884 3533 1855 532 119 875 122 132 Spaces Moved 9216 | 63 387 369 507 549 625 1297 1495 579 1055 649 627 313 80 519 61 41 Core 21 | 1 . . . 1 . . . . . 19 . . . . . . Treads 6078 | 62 315 . 68 428 625 1297 1495 579 1055 154 . . . . . . Legs 539 | . . . . 72 . . . . . 258 209 . . . . . Wheels 2360 | . 72 369 439 48 . . . . . . 418 313 80 519 61 41 Hover . | . . . . . . . . . . . . . . . . . Flight 218 | . . . . . . . . . . 218 . . . . . . Fastest Speed 50 | 50 80 95 95 105 160 142 160 160 160 150 150 150 150 115 175 190 Average Speed 182 | 158 148 106 134 168 163 155 160 160 160 485 245 150 150 118 183 199 Slowest Speed 945 | 160 160 110 240 600 240 205 160 160 160 945 610 150 150 190 190 205 Overloaded Moves . | . . . . . . . . . . . . . . . . . Propulsion Burnouts . | . . . . . . . . . . . . . . . . . Robots Hopped . | . . . . . . . . . . . . . . . . . Cave-ins Triggered . | . . . . . . . . . . . . . . . . . Exploration Rate (%) 55 | 5 54 72 42 78 99 34 92 66 85 75 23 35 68 76 1 32 Regions Visited 16 Branch Regions 10 Pre-discovered Areas 7 | . . . . . 4 . . . 1 . . . 1 1 . . Known Exits Taken 6 | . 1 . 1 . . 1 . . . 1 1 . . . 1 . Unknown Exits Taken 10 | 1 . 1 . 1 1 . 1 1 1 . . 1 1 1 . . Scrap Searched 14 | . . . . . . . 3 2 2 2 . 1 . 4 . . Spaces Dug 85 | . 1 10 3 . . 17 15 16 . 2 7 12 . 1 1 . Terrain Destroyed 387 | . 11 36 11 54 . 32 21 18 . 155 12 27 . 9 1 . Melee 21 | . . . . . . 10 . . . 2 7 . . 1 1 . Projectile 69 | . 1 19 4 1 . . 11 . . 4 5 16 . 8 . . AOE 297 | . 10 17 7 53 . 22 10 18 . 149 . 11 . . . . Terrain Rammed . | . . . . . . . . . . . . . . . . . Walls Destroyed . | . . . . . . . . . . . . . . . . . Machines Disabled . | . . . . . . . . . . . . . . . . . Actions | -11 -10 -10 -9 -9 -9 -7 -7 -7 -7 -6 -6 -6 -6 -5 -5 -5 --------- Run | Yrd Mat Min Mat Sto Rec Fac Low Low Zio Pro Fac Low Dat Pro Fac DSF Total 11936 | 81 514 540 628 932 934 1591 1739 616 1250 936 876 349 79 734 68 69 Wait 1439 | . 36 108 76 166 55 108 174 12 180 190 141 11 . 165 2 15 Move 9201 | 62 386 368 506 548 624 1296 1494 578 1054 648 626 312 79 518 61 41 Hop . | . . . . . . . . . . . . . . . . . Pick Up 103 | 6 7 2 3 15 3 22 4 1 2 12 21 . . 5 . . Fast Attach 57 | 6 1 2 2 18 . 12 . . 4 3 5 . . 2 2 . Attach 64 | 1 1 . 3 10 2 6 2 1 . 13 11 2 . 6 . 6 Detach 28 | . . . 1 4 2 2 . 1 . 5 9 . . 4 . . Swap 168 | 1 8 11 15 26 7 35 19 10 2 17 8 2 . 6 1 . Drop 98 | . 7 1 1 25 5 31 4 1 7 3 11 . . . 1 1 Fire 540 | 5 68 48 21 120 64 65 42 12 . 29 26 20 . 19 . 1 Melee 65 | . . . . . 3 13 . . 1 16 18 2 . 9 1 2 Ram 3 | . . . . . . . . . . . . . . . . 3 Kick . | . . . . . . . . . . . . . . . . . Crush 1 | . . . . . . 1 . . . . . . . . . . Escape Stasis . | . . . . . . . . . . . . . . . . . Rewire 169 | . . . . . 169 . . . . . . . . . . . Trap . | . . . . . . . . . . . . . . . . . Miscellaneous . | . . . . . . . . . . . . . . . . . Route ------- -11/Scrapyard -10/Materials (discovered 3 exits: *Mat / *Min x2) -10/Mines (discovered 2 exits: *Mat x2) -9/Materials (discovered 3 exits: [*Mat] / Min / *Sto) -9/Storage (discovered 2 exits: [*Mat] / *Rec) -9/Recycling -7/Factory (discovered 3 exits: *Fac / *Low x2) -7/Lower Caves -7/Lower Caves (discovered 2 exits: *Fac / [*Zio]) -7/Zion -6/Proximity Caves -6/Factory (discovered 2 exits: *Low x2) -6/Lower Caves -6/Data Miner -5/Proximity Caves -5/Factory -5/DSF History --------- Turn | Location | Event 7 | -11/Scrapyard | Discovered new exit (range 15) 131 | -11/Scrapyard | Entered Materials 131 | -10/Materials | Discovered new exit (range 8) 232 | -10/Materials | Discovered new exit (range 14) 232 | -10/Materials | Identified exit to Mines 303 | -10/Materials | Build established: Mutant 962 | -10/Materials | Entered Mines 963 | -10/Mines | Assembled infested the area 968 | -10/Mines | Assisted by a Guerilla fighting off Assembled 1020 | -10/Mines | Received a Rocket Launcher from a helpful Derelict 1142 | -10/Mines | Discovered new exit (range 6) 1648 | -10/Mines | Discovered new exit (range 10) 1659 | -10/Mines | Entered Materials 1659 | -9/Materials | Evolved 2 slots: Propulsion x1, Utility x1 1664 | -9/Materials | Build established: Scavenger-Mutant 2311 | -9/Materials | Identified exit to Mines 2311 | -9/Materials | Identified exit to Storage 2324 | -9/Materials | Discovered new exit (range 14) 2511 | -9/Materials | Entered Storage 2763 | -9/Storage | Lost 5 parts (1p3n1u) 2853 | -9/Storage | Lost 3 parts (1u2w) 3236 | -9/Storage | Core integrity fell below 50% 3269 | -9/Storage | Lost 3 parts (2n1u) 3311 | -9/Storage | Lost 3 parts (1u2w) 3431 | -9/Storage | Assisted by bots powering up and referring to "LRC-V3" 3577 | -9/Storage | Discovered new exit (range 15) 3705 | -9/Storage | Build established: Commander-Mutant 3771 | -9/Storage | Lost 4 allies 3794 | -9/Storage | Met a pair of Derelict thieves 3926 | -9/Storage | Lost 8 allies 4024 | -9/Storage | Used back door to open Recycling access 4024 | -9/Storage | Discovered new exit (range 5) 4030 | -9/Storage | Entered Recycling 4035 | -9/Recycling | Found Scrap Engine 4181 | -9/Recycling | Build established: Mutant 4406 | -9/Recycling | Discovered new exit (range 8) 4428 | -9/Recycling | Core integrity fell below 20% 4912 | -9/Recycling | Build established: Commander-Mutant 4913 | -9/Recycling | P-60 Hacker assimilated allied Mercenary 2j 5475 | -9/Recycling | Entered Factory 5475 | -7/Factory | Accompanied by 12 allies 5475 | -7/Factory | Evolved 4 slots: Propulsion x1, Utility x2, Weapon x1 5593 | -7/Factory | Fabricated Adv. Thermal Shield (x2) 5735 | -7/Factory | Lost 3 allies 6162 | -7/Factory | Build established: Commander-Tank 6521 | -7/Factory | Discovered new exit (range 10) 6574 | -7/Factory | Identified exit to Factory 6783 | -7/Factory | Build established: Scavenger-Tank 6816 | -7/Factory | Garrison activated, responded to threat 7121 | -7/Factory | Build established: Tank 7513 | -7/Factory | Identified exit to Lower Caves 7875 | -7/Factory | First assault squad dispatched 7928 | -7/Factory | Entered Lower Caves 8876 | -7/Lower Caves | Encountered a Warlord checkpoint 8887 | -7/Lower Caves | Learned Factory stockpile data 8900 | -7/Lower Caves | Learned Factory terminal intel 8985 | -7/Lower Caves | Build established: Skirmisher 9984 | -7/Lower Caves | Attracted the attention of an 0b10 checkpoint 10093 | -7/Lower Caves | Discovered new exit (range 12) 10338 | -7/Lower Caves | Ambushed by wild Derelicts 10616 | -7/Lower Caves | Build established: Tank 10629 | -7/Lower Caves | Entered another Lower Caves area 10688 | -7/Lower Caves | Discovered exit to Factory (range 13) 10875 | -7/Lower Caves | Encountered a Warlord checkpoint 11427 | -7/Lower Caves | Discovered new exit (range 7) 11604 | -7/Lower Caves | Learned Factory emergency access door positions 11619 | -7/Lower Caves | Entered Zion 11705 | -7/Zion | System corruption cleaned by Quarantine Array 11773 | -7/Zion | Found GAL Module 11881 | -7/Zion | Discovered new exit (range 11) 12007 | -7/Zion | Build established: Mutant 12052 | -7/Zion | Learned location of Data Miner (-6) 12535 | -7/Zion | Found Prototype Device 12535 | -7/Zion | Identified Bomb Factory No. 2 12767 | -7/Zion | Found Unknown Piercing Weapon 12767 | -7/Zion | Identified CR-A16's Pointy Stick 13503 | -7/Zion | Entered Proximity Caves 13614 | -6/Proximity Caves | Lost 4 parts (1p2n1u) 13949 | -6/Proximity Caves | Spotted B-75 Beast 14022 | -6/Proximity Caves | Core integrity fell below 50% 14023 | -6/Proximity Caves | Revealed the true nature of CR-A16's Pointy Stick 14023 | -6/Proximity Caves | Destroyed B-75 Beast 14052 | -6/Proximity Caves | Lost 5 parts (1p2n1u1w) 15012 | -6/Proximity Caves | Attracted the attention of an 0b10 checkpoint 16447 | -6/Proximity Caves | Discovered exit to Factory (range 12) 17036 | -6/Proximity Caves | Entered Factory 17036 | -6/Factory | Evolved 2 slots: Utility x1, Weapon x1 17039 | -6/Factory | Loaded intel: 26 terminal locations 17456 | -6/Factory | Allied Derelicts emerged from ambush trap array 17686 | -6/Factory | Identified exit to Lower Caves 18101 | -6/Factory | Garrison activated, responded to threat 18171 | -6/Factory | Lost 3 allies 18712 | -6/Factory | Central database locked down 18891 | -6/Factory | Entered Lower Caves 19180 | -6/Lower Caves | Build established: Gunner 19292 | -6/Lower Caves | A Derelict revealed a hidden shortcut to meet someone special 19416 | -6/Lower Caves | Attracted the attention of an 0b10 base 19423 | -6/Lower Caves | Entered Data Miner 19423 | -6/Data Miner | Discovered new exit (range 6) 19451 | -6/Data Miner | Lost 4 parts (1p1n2w) 19452 | -6/Data Miner | Met Data Miner 19480 | -6/Data Miner | Learned location of Section 7 (-3) 19480 | -6/Data Miner | Acquired the access code to Warlord's prototype stash 19507 | -6/Data Miner | Received God Mode back door access code from Data Miner 19542 | -6/Data Miner | Entered Proximity Caves 19595 | -5/Proximity Caves | Lost 3 parts (1n2w) 19867 | -5/Proximity Caves | Build established: Mutant 20196 | -5/Proximity Caves | Learned location of Warlord (-5) 20272 | -5/Proximity Caves | Attracted the attention of an 0b10 outpost 20400 | -5/Proximity Caves | Discovered new exit (range 10) 20417 | -5/Proximity Caves | Entered Factory 20417 | -5/Factory | Evolved 2 slots: Power x1, Utility x1 20433 | -5/Factory | Lost 4 parts (3n1w) 20539 | -5/Factory | Identified exit to DSF 20539 | -5/Factory | Entered DSF 20579 | -5/DSF | Additional patrols routed to DSF 20656 | -5/DSF | Core integrity fell below 50% 20664 | -5/DSF | Core integrity fell below 20% 20671 | -5/DSF | Destroyed by X-77 Beamer with Gatling Laser Last Messages --------------- 20621_ Imp. Medium Armor Plating destroyed. 20628_ Imp. Particle Charger destroyed. 20636_ Cld. Plasma Cannon destroyed. 20636_ Slammed into X-77 Beamer. 20638_ Destabilizing: System corrupted (+1). 20638_ Imp. Light Armor Plating destroyed. 20638_ Com. Wheel destroyed. 20640_ System corrupted: Adv. Thermal Shield rejected. 20640_ Imp. Arc Projector destroyed. 20641_ Slammed into X-77 Beamer. 20642_ Adv. Plasma Cannon destroyed. 20644_ Seismic Detector destroyed. 20646_ Imp. Focal Shield destroyed. 20647_ Arm. Scrap Engine destroyed. 20647_ Scrap Engine core remains intact and functional. 20659_ System corrupted: Matter fused (-5). 20663_ Scrap Engine destroyed. 20669_ Imp. Core Shielding destroyed. Map ----- +----------------------------------------------------+ | | | | | | | | | | | | | | | | | | | | | | | | | | | | | ????????????????????????????????????????????? | | ????????????????????????????????????????????? | | ????????????????????????????????????????????? | | ????????????????????????????????????????????? | | ????????????????????????????????#""?????????? | | ????????????????????????????????#"#?????????? | | ???????????????#########???????##"####??????? | | ???????????????# #########"""""#??????? | | ????????#!!# # #!!!#!!##"""""#??????? | | ?????? x ""##"????? | | ?????? ! """""????? | | ???????????# ### ###!@!#!!## ""###????? | | ?????????????????# ??#!x!#!!### ###??????? | | ???????????????? ???########## ##???????? | | ???????????????# ??????????#!! !#???????? | | ???????????????# ???????????#!! !#???????? | | ???????????????### ???????????### ##???????? | | ?????????????????!????????????#!! !#???????? | | ????????????????!!????????????#!! !#???????? | | ????????????????!?????????????#!! !#???????? | | ???????????????##?????????????### ###??????? | | ????????????????????????????????# !!#??????? | | ????????????????????????????????# !!#??????? | | ??????????????????????????????? #??????? | | ???????????????????H????????? #??????? | | ??????????????????????????? #??????? | | ?????????????????????????!!#!!!## !!#??????? | | ???????????????????????#!!?#!!!?# !!#??????? | | ???????????????????????#???###??######??????? | | ????????????????????????????????????????????? | | ????????????????????????????????????????????? | | ????????????????????????????????????????????? | | ????????????????????????????????????????????? | | ????????????????????????????????????????????? | | ????????????????????????????????????????????? | | ????????????????????????????????????????????? | +----------------------------------------------------+ Best States ------------- Heat Dissipation 40 Energy Generation 17 Energy Capacity 335 Matter Stores 339 Matter Capacity 500 Sight Range 16 Terrain Scan Range 20 Terrain Scan Density 10 EM Shielding 2 Armor Coverage 450 Resistance: KI 25 Resistance: TH 30 Core Shielding 30 Evasion (%) 44 Launcher Accuracy 20 Recoil Reduction 4 Matter Filtering 30 Particle Charging 20 Salvage Targeting 1 Item Schematics ----------------- Adv. Targeting Computer | -9/Storage | Hacked Cld. VTOL Module | -7/Factory | Scanalyzed Coil Gun | -7/Zion | Archive Mak. Terrain Scan Processor | -7/Zion | Archive Mak. Leg | -7/Zion | Archive Magnetic Acceleration Cannon | -7/Zion | Archive Hyp. Gauss Rifle | -7/Zion | Archive Adv. Melee Analysis Suite | -7/Zion | Archive Microactuators | -7/Zion | Archive Angular Momentum Engine | -7/Zion | Archive Gauss Rifle | -7/Zion | Archive Power Amplifier | -7/Zion | Archive Arm. Huge Wheel | -7/Zion | Archive Phasing Sabre | -7/Zion | Archive Imp. Transmission Jammer | -7/Zion | Archive Mak. Flight Unit | -7/Zion | Archive Hvy. Mass Driver | -7/Zion | Archive Huge Storage Unit | -6/Factory | Hacked Combat Drone Bay | -6/Data Miner | Free Lgt. Regenerative Plating | -6/Data Miner | Free Enh. Armored Leg | -6/Data Miner | Free Imp. Thermal Defense Suite | -6/Data Miner | Free Imp. KE Penetrator | -6/Data Miner | Free Imp. Linear Gravjet | -6/Data Miner | Free Imp. Force Booster | -6/Data Miner | Free Hvy. Gauss Cannon | -6/Data Miner | Free Imp. Force Field | -6/Data Miner | Free Adv. Component Analysis Suite | -6/Data Miner | Free Robot Schematics ------------------ D-53 Grenadier | -7/Factory | Hacked S-27 Virus | -7/Zion | Archive T-07 Excavator | -7/Zion | Archive O-24 Administrator | -7/Zion | Archive R-10 Processor | -6/Data Miner | Free P-60 Hacker | -6/Data Miner | Free B-48 Gladiator | -6/Data Miner | Free G-67 Veteran | -6/Data Miner | Free O-32 Director | -6/Data Miner | Free Fabricated ------------ Adv. Thermal Shield | x2 | -7/Factory | Preloaded Alien Tech Used ----------------- None Achievements -------------- None Challenges ------------ None Game ------ Seed DeepAntigravCapacitor Manual? 0 Play Time 03:04:37 Cumulative 80.4 hours Start 2024.05.07 @ 18:01:29 End 2024.05.08 @ 19:05:09 Sessions 3 Manual Loads 0 Difficulty Rogue Special Mode None Game No. 42 Rogue 42 Adventurer 0 Explorer 0 Win Type - Total 0 Types 0/0/0/0/0/0/0/0/0 Lore% 44 Gallery% 57 Achievement% 42 Wizard Run 0 Options --------- Layout 1 ASCII 0 Keyboard 0 Movement Mouse Keybinds 0 Fullscreen 1 Font 24/Smallcaps Map View 50x35 Zoom Use 0% Tactical HUD 1 Map Filters NONE Filters NONE Steam 1 RUN: 150337be-bf5e-4881-8b82-4ab7085e7718